bitfinex/quotes_ETHUSD_20240711
["timestamp","ask_amount","ask_price","bid_price","bid_amount"]
[1720698495822,1.06204706,3156.3,3156.1,6.08471034]
[1720698496026,1.06204706,3156.3,3156.1,3.80851034]
[1720698496225,1.06204706,3156.3,3155.9,6.33718]
[1720698496452,1.06205601,3156.2,3156.0,3.16854]
[1720698496648,1.06205601,3156.1,3156.0,3.16854]
[1720698496968,6.61555879,3156.4,3155.8,2.2763]
[1720698497284,2.1592331,3156.3,3155.8,2.2763]
[1720698497442,1.06202363,3156.2,3155.8,2.820811]
[1720698497632,1.06202363,3156.2,3155.5,3.517729]
[1720698497831,1.0973271,3156.1,3155.7,2.4422]
[1720698498044,2.15936564,3156.0,3155.8,3.16875]
[1720698498280,1.06202363,3155.9,3155.8,3.16875]
[1720698498759,1.06202363,3156.3,3155.8,3.16875]
[1720698498950,1.09734961,3156.2,3155.8,3.16875]
[1720698499153,2.15937324,3156.1,3155.8,3.16875]
[1720698499362,2.15937324,3156.0,3155.7,5.61105]
[1720698499678,1.06202363,3155.9,3155.7,5.61105]
[1720698499869,6.61555879,3156.4,3155.7,6.549059]
[1720698500164,2.15947728,3156.3,3156.2,0.2]
[1720698501858,4.44447728,3156.3,3156.2,0.2]
[1720698502647,2.15947728,3156.3,3156.2,0.2]
[1720698503076,6.61555879,3156.4,3156.2,0.2]
[1720698503379,2.15940687,3156.3,3156.2,0.2]
[1720698504154,2.15940687,3156.3,3156.2,0.4]
[1720698504354,4.49420687,3156.3,3156.2,0.4]
[1720698505348,5.92199144,3156.3,3156.2,0.4]
[1720698506571,5.92207635,3156.3,3156.2,0.4]
[1720698506844,5.92207668,3156.3,3156.2,0.4]
[1720698510193,5.92209576,3156.3,3156.2,0.4]
[1720698511966,2.15951119,3156.3,3156.2,0.4]
[1720698513562,2.15950413,3156.3,3156.2,0.4]
[1720698513765,4.49860413,3156.3,3156.2,0.4]
[1720698513974,3.40125168,3156.3,3156.2,0.4]
[1720698514176,4.49859666,3156.3,3156.2,0.4]
[1720698515501,2.15949666,3156.3,3156.2,0.4]
[1720698515860,2.1593382,3156.3,3156.2,1.005176]
[1720698516349,2.15919137,3156.3,3156.2,1.005176]
[1720698516575,2.15919137,3156.3,3156.2,0.4]
[1720698516890,0.811,3156.3,3156.2,0.4]
[1720698517054,2.97036411,3156.3,3156.2,0.4]
[1720698520519,1.90831837,3156.3,3156.2,0.4]
[1720698520675,2.97044472,3156.3,3156.2,0.4]
[1720698523776,1.09731837,3156.3,3156.2,0.4]
[1720698523977,2.97044187,3156.3,3156.2,0.4]
[1720698525379,11.90380606,3156.3,3156.2,0.4]
[1720698525573,12.31778652,3156.3,3156.2,0.4]
[1720698527409,12.31808842,3156.3,3156.2,0.4]
[1720698527927,8.73584796,3156.3,3156.2,0.4]
[1720698528132,2.15974377,3156.3,3156.2,0.4]
[1720698528303,2.97074377,3156.3,3156.2,0.4]
[1720698530940,2.97039492,3156.3,3156.2,0.4]
[1720698533222,2.15939492,3156.3,3156.2,0.4]
[1720698533623,2.15939492,3156.3,3156.2,3.56836]
[1720698533945,2.15939492,3156.3,3156.2,0.4]
[1720698534114,2.15939492,3156.3,3156.1,5.46925]
[1720698534315,2.15934619,3156.2,3156.1,5.46925]
[1720698534921,2.15934619,3156.2,3155.9,6.33727]
[1720698535254,2.15934619,3156.1,3155.9,3.16861]
[1720698535440,2.15934619,3156.0,3155.9,3.16861]
[1720698536339,2.15934619,3156.0,3155.9,3.802351]
[1720698537862,2.15936292,3156.0,3155.9,6.33727]
[1720698538963,1.06209046,3156.0,3155.9,6.33727]
[1720698539264,1.06203955,3156.3,3156.2,3.16829]
[1720698539437,2.15926664,3156.3,3156.2,3.16829]
[1720698539764,2.15926664,3156.3,3156.2,6.239368]
[1720698540258,2.15926664,3156.3,3156.2,9.407728]
[1720698540772,0.811,3156.4,3156.2,0.633678]
[1720698540925,2.159242,3156.3,3156.2,3.16833]
[1720698541423,2.159242,3156.3,3156.0,6.33697]
[1720698541633,2.159242,3156.2,3156.1,3.16846]
[1720698542728,2.159242,3156.2,3156.1,6.33692]
[1720698543025,2.159242,3156.2,3156.1,7.202632]
[1720698543232,2.159242,3156.2,3156.1,4.034172]
[1720698543625,5.88415046,3156.6,3155.7,3.16881]
[1720698543828,0.811,3156.2,3155.7,3.16881]
[1720698544082,2.15922553,3156.1,3155.8,3.16869]
[1720698544381,6.61555879,3157.0,3155.7,3.16881]
[1720698544382,2.32994712,3157.5,3156.4,2.2866]
[1720698544581,2.32994712,3157.9,3157.1,0.811]
[1720698544888,6.61555879,3158.0,3157.4,3.16715]
[1720698545063,7.42655879,3158.0,3157.4,3.16715]
[1720698545385,7.42655879,3158.0,3157.8,3.16675]
[1720698545386,6.61555879,3158.0,3157.8,3.16675]
[1720698545562,0.811,3158.0,3157.8,3.16675]
[1720698545745,0.811,3158.0,3157.4,3.1671]
[1720698546077,0.811,3157.8,3157.4,3.16714]
[1720698546276,0.811,3157.8,3157.4,3.800571]
[1720698547729,0.1135931,3158.4,3157.5,3.16704]
[1720698548039,0.811,3158.0,3157.6,3.16689]
[1720698548269,0.1135931,3158.4,3158.1,5.55693]
[1720698548583,0.1135931,3158.4,3158.3,3.16626]
[1720698548737,0.1135931,3158.4,3158.3,4.04491096]
[1720698549375,0.1135931,3158.4,3158.3,10.37743096]
[1720698549576,0.1135931,3158.4,3158.3,7.76117096]
[1720698550045,0.1135931,3158.4,3158.3,10.92743096]
[1720698550248,0.1135931,3158.4,3158.3,7.76117096]
[1720698550634,0.1135931,3158.4,3158.3,10.92743096]
[1720698551039,0.1135931,3158.4,3158.3,7.76117096]
[1720698551259,0.1135931,3158.4,3158.3,10.92743096]
[1720698551772,3.1e-06,3158.4,3158.3,16.54439096]
[1720698552479,1.944,3160.6,3158.9,3.16556]
[1720698552700,2.3664,3161.4,3158.9,3.16556]
[1720698552701,0.35696129,3161.1,3160.0,2.2622]
[1720698552988,8.98195879,3161.4,3160.7,3.1638]
[1720698553136,12.07934008,3161.8,3160.7,3.1638]
[1720698553335,0.35696129,3161.8,3160.9,3.16363]
[1720698553571,3.16305,3161.5,3160.6,1.64240271]
[1720698553746,3.16326,3161.3,3160.6,1.64240271]
[1720698554077,3.16338,3161.2,3160.6,1.64240271]
[1720698554273,3.16347,3161.1,3160.6,1.64240271]
[1720698554432,3.16376,3160.8,3159.7,3.16]
[1720698555581,3.16376,3160.8,3159.8,3.16474]
[1720698557411,3.16388,3160.7,3159.7,3.16]
[1720698557561,2.260347,3161.0,3159.4,6.12513]
[1720698557562,3.16436,3160.2,3159.4,2.96]
[1720698557762,0.316436,3160.1,3159.4,2.96]
[1720698558518,0.316436,3160.1,3159.4,6.12514]
[1720698558680,1.944,3160.5,3159.4,6.12514]
[1720698559002,4.4276,3160.9,3159.7,3.16482]
[1720698559207,4.4276,3160.9,3159.4,6.12513]
[1720698559360,3.16425,3160.3,3159.4,2.96]
[1720698559565,2.8014,3160.9,3159.4,2.96]
[1720698559566,3.16473,3159.9,3159.4,2.96]
[1720698560016,3.16486,3159.7,3159.2,1.64240271]
[1720698560578,2.4836,3160.0,3158.4,2.4944]
[1720698560579,3.16507,3159.5,3158.4,2.4944]
[1720698560777,3.16525,3159.3,3158.2,3.16634]
[1720698560989,3.16525,3159.3,3158.1,4.60240271]
[1720698561190,3.16557,3159.0,3158.1,4.60240271]
[1720698561467,3.16572,3158.9,3158.1,4.60240271]
[1720698562307,3.16576,3158.8,3158.1,4.60240271]
[1720698562812,9.78108879,3159.1,3158.1,4.60240271]
[1720698563110,3.16573,3158.9,3158.1,4.60240271]
[1720698563269,0.316573,3158.8,3158.1,4.60240271]
[1720698563672,9.78108879,3159.1,3158.1,4.60240271]
[1720698564006,6.61555879,3159.1,3158.4,3.16607]
[1720698564315,6.61555879,3159.1,3158.7,3.16576]
[1720698564617,6.61555879,3159.1,3158.5,3.71603]
[1720698564795,6.61555879,3159.1,3158.6,3.16589]
[1720698565115,6.61555879,3159.1,3158.7,3.16585]
[1720698565419,6.61555879,3159.1,3158.8,3.16575]
[1720698565622,9.12439179,3159.8,3158.8,3.16575]
[1720698565908,1.22890818,3159.7,3158.9,3.16564]
[1720698566125,1.944,3160.2,3159.1,3.16538]
[1720698566414,3.16462,3160.0,3159.0,3.16555]
[1720698566587,1.944,3160.2,3159.2,3.16535]
[1720698566773,1.944,3160.2,3159.3,0.06329635]
[1720698566975,5.10836,3160.2,3159.3,0.06329635]
[1720698567288,3.991734,3160.1,3159.2,3.16535]
[1720698567797,0.827264,3160.1,3159.3,0.06329641]
[1720698568010,6.61555879,3160.4,3159.6,3.16494]
[1720698568224,1.944,3160.6,3159.4,0.55]
[1720698568399,3.16413,3160.5,3159.5,3.16505]
[1720698568593,3.16413,3160.5,3159.3,5.49211]
[1720698568594,3.16456,3160.0,3159.1,1.64240271]
[1720698569081,3.16456,3160.0,3159.1,4.80785271]
[1720698569492,3.50354584,3160.4,3159.1,1.64240271]
[1720698569698,3.16472,3159.9,3159.1,1.64240271]
[1720698569991,3.16488,3159.7,3159.1,1.64240271]
[1720698570495,6.32983,3159.7,3159.1,1.64240271]
[1720698570720,3.16495,3159.6,3159.1,1.64240271]
[1720698571020,3.16507,3159.5,3159.1,1.64240271]
[1720698571185,0.316507,3159.4,3159.1,1.64240271]
[1720698571715,3.16495,3159.7,3159.1,1.64240271]
[1720698572215,3.16471,3159.9,3159.1,1.64240271]
[1720698572428,6.93200679,3160.0,3159.1,1.64240271]
[1720698572577,0.69320068,3159.9,3159.1,1.64240271]
[1720698572776,3.85786068,3159.9,3159.1,1.64240271]
[1720698572981,0.69320068,3159.9,3159.1,4.80785271]
[1720698573211,3.85788068,3159.9,3159.1,1.64240271]
[1720698573822,0.69320068,3159.9,3159.1,1.64240271]
[1720698574176,6.61555879,3160.0,3159.3,3.16524]
[1720698574379,9.77970879,3160.4,3159.4,3.16515]
[1720698574684,3.16427,3160.3,3159.4,3.16515]
[1720698575028,3.16455,3160.1,3159.1,2.43975698]
[1720698575228,0.632891,3160.0,3159.2,3.16529]
[1720698575382,0.40273284,3160.4,3159.1,1.64240271]
[1720698575585,3.16481,3159.8,3159.1,1.64240271]
[1720698576125,3.1645,3160.1,3159.2,0.06330195]
[1720698576308,3.16456,3160.0,3159.1,4.80779271]
[1720698576622,3.16466,3159.9,3159.1,1.64240271]
[1720698576776,3.481236,3159.8,3159.1,1.64240271]
[1720698577544,3.16507,3159.5,3159.1,1.64240271]
[1720698577678,3.16547,3159.1,3157.8,12.9323]
[1720698577878,3.16557,3159.0,3158.0,3.1665]
[1720698578199,3.16567,3158.9,3157.9,4.80905271]
[1720698578379,3.16567,3158.9,3158.0,3.16654]
[1720698578777,3.16577,3158.8,3157.9,1.64240271]
[1720698578988,6.33162,3158.8,3157.9,1.64240271]
[1720698579419,3.16586,3158.7,3157.9,1.64240271]
[1720698580635,3.16577,3158.8,3157.9,1.64240271]
[1720698580636,3.16604,3158.6,3157.9,1.64240271]
[1720698580823,3.16617,3158.4,3157.9,1.64240271]
[1720698581612,3.16645,3158.2,3156.9,3.16757]
[1720698581811,3.16676,3157.8,3156.7,1.64240271]
[1720698582036,3.16687,3157.7,3156.8,3.33200027]
[1720698582237,3.16676,3157.8,3156.8,3.33200027]
[1720698582611,3.16686,3157.7,3156.9,3.16765]
[1720698583441,3.16686,3157.7,3156.8,0.16424027]
[1720698584503,3.16686,3157.7,3156.8,3.33194027]
[1720698584837,3.16686,3157.7,3156.9,0.8142103]
[1720698585048,3.16716,3157.4,3156.7,1.64240271]
[1720698587416,3.16731,3157.3,3156.7,1.64240271]
[1720698587807,3.16738,3157.2,3156.7,1.64240271]
[1720698588147,6.33483,3157.2,3156.7,1.64240271]
[1720698588332,3.800863,3157.2,3156.7,1.64240271]
[1720698588517,3.16738,3157.2,3156.7,1.64240271]
[1720698588901,3.16757,3157.0,3156.7,1.64240271]
[1720698589847,3.16738,3157.2,3156.7,1.64240271]
[1720698590052,6.61555879,3157.5,3156.7,1.64240271]
[1720698590348,3.16722,3157.4,3156.7,1.64240271]
[1720698590517,3.1673,3157.3,3156.7,1.64240271]
[1720698590725,3.16758,3157.0,3156.7,1.64240271]
[1720698591623,3.16759,3157.0,3156.7,1.64240271]
[1720698593413,8.70698788,3157.4,3156.7,1.64240271]
[1720698593754,3.16737,3157.2,3156.7,1.64240271]
[1720698595477,5.11416,3157.4,3156.7,1.64240271]
[1720698596366,3.16731,3157.3,3156.7,1.64240271]
[1720698597280,3.16747,3157.1,3156.1,0.33158452]
[1720698597485,3.16747,3157.1,3156.1,3.49999452]
[1720698597647,3.16747,3157.1,3156.2,0.34999945]
[1720698597852,3.16762,3157.0,3156.2,0.34999945]
[1720698598057,3.1677,3156.9,3156.1,0.33158452]
[1720698598453,3.16797,3156.6,3155.8,2.4645]
[1720698598655,3.16797,3156.6,3155.7,2.96]
[1720698598851,3.16797,3156.6,3155.8,3.16876]
[1720698599080,3.16797,3156.6,3155.7,2.96]
[1720698599284,3.16807,3156.5,3155.7,2.96]
[1720698599642,3.16852,3156.1,3155.6,1.64240271]
[1720698600444,0.633593,3156.6,3155.6,1.64240271]
[1720698600445,3.16811,3156.5,3155.6,1.64240271]
[1720698600653,3.16811,3156.5,3155.3,3.16925]
[1720698600654,3.16828,3156.3,3155.4,3.16915]
[1720698600987,3.16843,3156.2,3155.3,3.16925]
[1720698601143,3.16854,3156.1,3155.0,3.16956]
[1720698601456,3.16867,3155.9,3154.9,5.48619]
[1720698601655,3.16867,3155.9,3154.9,2.3166]
[1720698601977,7.49609,3156.2,3154.5,2.4043]
[1720698602342,3.16897,3155.6,3154.6,3.16991]
[1720698602573,3.16897,3155.6,3154.7,3.16986]
[1720698602770,3.16897,3155.6,3154.7,3.727276]
[1720698603198,3.16897,3155.6,3154.7,0.557416]
[1720698603347,3.16909,3155.5,3154.7,0.557416]
[1720698603546,6.33825,3155.5,3154.5,2.4043]
[1720698603752,3.16909,3155.5,3154.4,3.17009]
[1720698604113,3.16934,3155.3,3154.5,3.17006]
[1720698604395,1.947,3155.4,3154.5,3.17006]
[1720698604599,1.947,3155.4,3154.5,3.804092]
[1720698604910,5.11618,3155.4,3154.5,3.804092]
[1720698605066,5.11618,3155.4,3154.5,0.634032]
[1720698605555,3.16953,3155.1,3154.1,5.49239]
[1720698605746,3.16973,3154.9,3153.9,3.17063]
[1720698605945,3.16973,3154.9,3154.1,0.33181719]
[1720698606147,0.633926,3154.9,3153.7,3.1708]
[1720698606390,3.16997,3154.6,3153.6,5.45487]
[1720698606685,3.16997,3154.6,3153.6,3.17097]
[1720698606847,4.78397,3154.6,3153.6,3.17097]
[1720698607047,3.17008,3154.5,3153.4,3.17109]
[1720698607251,3.17008,3154.5,3153.2,2.2839]
[1720698607252,2.83738,3154.2,3153.2,3.17132]
[1720698607460,4.78438,3154.2,3153.0,3.17151]
[1720698607656,4.78438,3154.2,3152.7,2.2839]
[1720698607657,3.17075,3153.9,3152.7,5.45578]
[1720698607894,3.17075,3153.9,3152.9,3.1716]
[1720698608285,3.17075,3153.9,3153.0,3.17157]
[1720698608873,3.17051,3154.1,3153.1,3.17147]
[1720698609195,3.17059,3154.0,3153.1,3.805764]
[1720698609395,3.17069,3153.9,3153.1,0.634304]
[1720698609816,3.17069,3153.9,3152.6,3.17193]
[1720698610032,3.17089,3153.7,3152.6,3.17193]
[1720698610338,3.17101,3153.6,3152.6,3.17193]
[1720698610468,3.17099,3153.6,3152.6,3.17193]
[1720698610667,3.17108,3153.5,3152.2,2.4196]
[1720698610906,3.17089,3153.7,3152.7,3.1718]
[1720698611130,3.17098,3153.6,3152.7,3.1718]
[1720698611271,3.17108,3153.5,3152.5,3.17202]
[1720698611474,3.17118,3153.4,3152.3,0.57369161]
[1720698611705,2.4809,3153.5,3152.3,0.24196]
[1720698611872,2.4809,3153.5,3152.5,3.17201]
[1720698612496,5.65198,3153.5,3152.5,3.17201]
[1720698612679,3.1712,3153.4,3152.5,3.17201]
[1720698613566,3.1712,3153.4,3152.3,3.17218]
[1720698613567,3.17128,3153.3,3152.3,3.17218]
[1720698613788,3.17128,3153.3,3152.4,3.17211]
[1720698613988,3.1712,3153.4,3152.5,3.17201]
[1720698613989,3.17118,3153.4,3152.5,3.17201]
[1720698614200,3.17118,3153.4,3152.4,0.634429]
[1720698614391,3.17118,3153.4,3152.4,3.806519]
[1720698614587,3.17129,3153.3,3152.4,0.634429]
[1720698614779,3.17129,3153.3,3151.8,2.4613]
[1720698614780,3.17129,3153.3,3152.3,3.17225]
[1720698615021,3.1714,3153.2,3152.1,3.17246]
[1720698615192,3.17148,3153.1,3152.1,3.17246]
[1720698615589,3.17148,3153.1,3152.1,3.17241]
[1720698615823,3.17148,3153.1,3152.2,3.17232]
[1720698616016,3.17136,3153.3,3152.3,3.17224]
[1720698616314,14.86860879,3153.5,3152.5,3.17199]
[1720698616521,14.86860879,3153.5,3152.6,3.17197]
[1720698616819,11.69745879,3153.5,3152.6,3.17197]
[1720698617337,5.95345081,3153.5,3153.4,3.17118]
[1720698617623,12.2,3154.4,3153.6,3.17091]
[1720698617624,5.95345081,3153.9,3153.6,3.17091]
[1720698617780,5.95345081,3153.9,3153.8,3.17077]
[1720698617979,2.3825,3154.8,3153.6,2.4092]
[1720698618340,0.40273284,3155.7,3154.7,3.1698]
[1720698618476,2.3825,3155.8,3155.0,3.1695]
[1720698618679,3.16849,3156.1,3155.1,3.16939]
[1720698618881,3.16859,3156.0,3154.9,3.16966]
[1720698619075,3.16867,3155.9,3154.7,3.1698]
[1720698619343,3.16887,3155.7,3154.5,3.17004]
[1720698619619,0.40273284,3155.6,3154.5,3.17004]
[1720698619779,3.57170284,3155.6,3154.5,3.17004]
[1720698620138,2.601,3156.0,3155.1,3.16938]
[1720698620424,0.40273284,3156.1,3155.2,3.16933]
[1720698620581,0.40273284,3156.1,3155.3,3.16926]
[1720698620781,0.40273284,3156.1,3154.9,3.16963]
[1720698621015,0.40273284,3156.1,3155.1,3.16945]
[1720698621592,0.40273284,3156.1,3155.3,3.16926]
[1720698621929,0.40273284,3156.1,3155.4,3.16915]
[1720698622233,3.57073284,3156.6,3155.6,3.16896]
[1720698623027,3.57073284,3156.6,3155.8,3.16875]
[1720698623028,0.40273284,3156.6,3155.8,3.16875]
[1720698623227,0.40273284,3156.5,3155.8,3.16875]
[1720698623446,3.84737082,3157.0,3154.9,5.42433]
[1720698623447,2.4014,3157.2,3156.2,3.16828]
[1720698623725,0.95960284,3157.1,3156.3,3.16825]
[1720698623926,2.4014,3157.2,3156.3,3.16825]
[1720698624129,3.16716,3157.4,3156.3,3.16825]
[1720698624332,3.16716,3157.4,3156.4,3.16815]
[1720698624542,3.16726,3157.3,3156.4,3.16815]
[1720698624699,0.35699928,3157.2,3156.4,3.16815]
[1720698624900,3.92709212,3157.2,3156.3,3.16825]
[1720698625124,0.40273284,3157.1,3156.3,3.16826]
[1720698626037,0.40273284,3157.1,3156.1,3.16846]
[1720698626038,3.57020284,3157.1,3156.1,3.16846]
[1720698626223,0.70945621,3157.0,3156.1,3.16846]
[1720698626603,4.27975905,3157.0,3155.9,3.16863]
[1720698627027,4.27975905,3157.0,3155.7,3.16883]
[1720698627028,4.27975905,3157.0,3156.0,3.16856]
[1720698627213,4.27975905,3157.0,3155.7,3.16883]
[1720698627214,5.76875,3156.9,3155.7,3.16883]
[1720698627535,5.51938,3156.8,3155.6,3.16896]
[1720698627717,4.33702628,3156.7,3155.6,3.16896]
[1720698627921,3.168,3156.6,3155.5,3.16905]
[1720698628411,3.16817,3156.4,3155.1,3.16942]
[1720698628624,2.601,3156.4,3155.1,3.16942]
[1720698628943,2.601,3156.4,3155.5,3.16903]
[1720698629241,1.16908628,3156.7,3155.9,3.16857]
[1720698629540,1.16908628,3156.7,3155.7,3.16879]
[1720698629541,2.3516,3156.8,3155.7,3.16879]
[1720698629736,5.51936,3156.8,3155.8,3.16876]
[1720698630042,2.3516,3156.8,3156.0,3.16854]
[1720698630226,2.95799928,3157.2,3156.0,3.23190629]
[1720698630542,0.35699928,3157.2,3156.3,3.16823]
[1720698630836,0.59674693,3157.1,3156.0,3.16853]
[1720698631001,0.59674693,3157.1,3156.1,3.16844]
[1720698631198,3.16756,3157.0,3155.9,3.16858]
[1720698631433,0.59674693,3157.1,3156.3,3.16824]
[1720698631638,0.3178,3157.7,3156.5,3.16803]
[1720698631639,3.16708,3157.5,3156.5,3.16803]
[1720698631836,0.316708,3157.4,3156.5,3.16803]
[1720698632004,3.483868,3157.4,3156.4,3.16806]
[1720698632401,3.483868,3157.4,3156.5,3.16805]
[1720698633207,0.316708,3157.4,3156.6,3.16796]
[1720698634725,0.316708,3157.4,3155.1,4.6694]
[1720698634726,2.2549,3158.5,3157.7,3.16685]
[1720698634903,5.42054,3159.0,3157.9,3.16663]
[1720698635323,5.42054,3159.0,3157.5,3.16698]
[1720698635324,3.16578,3158.8,3157.5,3.16698]
[1720698635637,3.482448,3158.7,3157.7,3.1668]
[1720698635817,3.16604,3158.6,3157.5,3.16702]
[1720698636011,3.16616,3158.4,3157.5,3.16696]
[1720698636311,3.16616,3158.4,3157.6,3.16693]
[1720698636837,3.16616,3158.4,3157.3,3.36719]
[1720698637166,2.917578,3158.7,3157.3,0.2]
[1720698637167,2.4282,3158.1,3157.3,0.2]
[1720698637305,3.16667,3157.9,3157.3,0.2]
[1720698637644,3.16658,3158.0,3157.3,0.2]
[1720698637827,3.16676,3157.8,3157.3,0.2]
[1720698638139,3.16686,3157.7,3157.3,0.2]
[1720698638341,0.633362,3157.6,3157.3,0.2]
[1720698638756,3.16687,3157.7,3157.3,0.2]
[1720698639529,3.16671,3157.9,3157.3,0.2]
[1720698639992,3.16688,3157.7,3157.3,0.2]
[1720698640130,3.16671,3157.9,3157.3,0.4]
[1720698640467,2.4282,3158.1,3157.3,0.4]
[1720698640682,0.24282,3158.0,3157.3,0.4]
[1720698640831,0.24282,3158.0,3157.3,3.56725]
[1720698641855,3.40938,3158.0,3157.3,0.4]
[1720698642064,0.24282,3158.0,3157.3,0.4]
[1720698642276,3.16673,3157.9,3157.3,0.4]
[1720698642455,0.340955,3157.8,3157.3,0.4]
[1720698643248,0.24282,3158.0,3157.4,3.16714]
[1720698643477,2.601,3158.7,3157.3,0.4]
[1720698643478,8.69045032,3158.7,3157.3,0.4]
[1720698643651,5.95345081,3158.7,3158.3,3.16624]
[1720698643872,18.15345081,3159.1,3158.3,3.16624]
[1720698644473,18.15345081,3159.1,3158.4,3.16614]
[1720698644674,18.15345081,3159.1,3158.3,3.16624]
[1720698644675,18.15345081,3159.1,3158.5,3.16604]
[1720698644992,20.20480589,3159.1,3158.5,3.16604]
[1720698645601,20.20480589,3159.1,3157.9,3.16658]
[1720698645908,3.16556,3159.0,3158.1,3.16645]
[1720698646223,22.8497054,3159.1,3158.4,3.16615]
[1720698646519,19.9157054,3159.1,3158.4,3.16615]
[1720698646673,1.99157054,3159.0,3158.4,3.16615]
[1720698647310,1.99157054,3159.0,3157.7,5.52356]
[1720698647560,1.99157054,3159.0,3158.0,3.16647]
[1720698647823,5.15715054,3159.0,3158.0,3.16648]
[1720698647980,5.15715054,3159.0,3158.1,3.16645]
[1720698648180,2.26446013,3158.9,3158.1,3.16645]
[1720698648673,2.26446013,3158.9,3157.8,3.16671]
[1720698648981,2.26446013,3158.9,3158.0,3.16655]
[1720698649890,3.16567,3158.9,3157.8,3.16671]
[1720698650327,3.16567,3158.9,3158.0,3.16649]
[1720698650627,3.16587,3158.7,3157.6,3.16689]
[1720698650787,3.16597,3158.6,3157.5,3.16698]
[1720698650993,3.16612,3158.5,3157.3,0.6]
[1720698651194,3.16612,3158.5,3157.3,3.76725]
[1720698651380,3.16627,3158.3,3157.3,3.76718]
[1720698651586,0.316627,3158.2,3157.4,3.1671]
[1720698652390,0.316627,3158.2,3157.3,3.76718]
[1720698652612,0.316627,3158.2,3157.3,6.93435]
[1720698652817,0.316627,3158.2,3157.4,3.16709]
[1720698653013,3.16646,3158.1,3157.3,0.6]
[1720698653316,0.3483087,3158.0,3157.3,0.6]
[1720698653616,3.483007,3158.2,3157.3,0.6]
[1720698653910,3.16646,3158.1,3157.3,0.6]
[1720698654475,3.16674,3157.9,3157.3,0.6]
[1720698654679,3.16695,3157.7,3157.3,0.6]
[1720698654990,0.316695,3157.6,3157.3,0.6]
[1720698655196,3.16667,3157.9,3157.3,0.6]
[1720698655604,5.65866,3158.0,3157.3,0.6]
[1720698657109,0.316627,3158.2,3157.3,3.76718]
[1720698657311,0.316627,3158.2,3157.4,3.16714]
[1720698657687,3.482997,3158.2,3157.3,0.6]
[1720698657921,0.94364478,3158.1,3157.3,0.6]
[1720698658123,3.16637,3158.2,3157.3,0.6]
[1720698658424,2.70952356,3161.2,3157.3,0.6]
[1720698658425,5.95345081,3158.7,3158.1,3.16638]
[1720698658586,5.95345081,3159.0,3158.1,3.16638]
[1720698658790,5.95345081,3159.0,3158.2,3.16633]
[1720698658987,5.95345081,3159.0,3158.1,3.16638]
[1720698658988,8.26545089,3159.0,3158.3,3.16625]
[1720698660131,5.95345081,3159.0,3158.3,3.16625]
[1720698660537,5.95345081,3159.0,3158.3,2.3456]
[1720698660825,5.95345081,3159.0,3158.7,3.16581]
[1720698661031,5.95345081,3159.5,3158.8,3.1657]
[1720698661200,5.95345081,3159.5,3159.1,3.16544]
[1720698666045,5.95345081,3159.5,3159.2,3.16534]
[1720698666402,5.95345081,3159.5,3159.3,3.16525]
[1720698666600,22.50835081,3160.0,3159.3,3.16525]
[1720698666826,2.25083508,3159.9,3159.3,6.33041]
[1720698667028,2.25083508,3159.9,3159.4,3.16513]
[1720698667337,5.95345081,3160.0,3159.4,3.16513]
[1720698667916,5.95345081,3160.0,3159.8,3.16472]
[1720698668251,5.95345081,3160.5,3159.9,3.16465]
[1720698668543,8.55445081,3160.8,3160.1,3.1644]
[1720698668727,5.95345081,3160.8,3159.8,3.16468]
[1720698668917,0.91171308,3160.7,3159.9,3.16459]
[1720698669108,0.91171308,3160.7,3160.0,3.16455]
[1720698669503,5.95345081,3160.8,3160.2,3.16434]
[1720698669875,5.95345081,3161.1,3160.2,6.32861]
[1720698669998,5.95345081,3161.1,3160.3,3.16423]
[1720698670223,5.95345081,3161.1,3160.3,3.16418]
[1720698670553,5.95345081,3161.1,3160.3,3.1642]
[1720698670755,2.32518108,3161.0,3160.3,3.1642]
[1720698671072,2.32518108,3161.0,3159.5,3.165]
[1720698671073,2.4759,3160.7,3159.5,3.165]
[1720698671241,3.16407,3160.5,3159.5,3.165]
[1720698671437,3.16407,3160.5,3159.6,3.16493]
[1720698671682,0.632812,3160.4,3159.7,3.16483]
[1720698671828,0.632812,3160.4,3159.4,3.16509]
[1720698672266,0.632812,3160.4,3159.6,3.16495]
[1720698672481,0.632812,3160.4,3159.4,3.16508]
[1720698672839,3.16426,3160.3,3159.5,3.16504]
[1720698673152,1.29145928,3160.3,3159.5,3.16504]
[1720698673335,1.29145928,3160.3,3159.5,6.33001]
[1720698673662,3.16421,3160.4,3159.5,3.16497]
[1720698674365,5.95345081,3160.5,3159.7,3.16476]
[1720698674573,5.95345081,3160.5,3159.7,6.32954]
[1720698675068,5.95345081,3160.5,3159.7,3.16476]
[1720698675670,5.95345081,3160.5,3159.6,3.16495]
[1720698675834,7.11278089,3160.5,3159.7,3.16485]
[1720698676035,7.11278089,3160.5,3159.8,3.16474]
[1720698676272,7.11278089,3160.5,3159.7,3.16477]
[1720698676273,7.11278089,3160.5,3159.9,3.16464]
[1720698676656,7.11278089,3160.5,3159.7,3.16477]
[1720698676857,7.11278089,3160.5,3159.8,3.16469]
[1720698677366,0.71127809,3160.4,3159.4,0.2]
[1720698677574,3.87545809,3160.4,3159.5,3.16499]
[1720698678373,3.87545809,3160.4,3159.6,3.16494]
[1720698678572,3.87545809,3160.4,3159.4,0.4]
[1720698678854,3.31227809,3160.4,3159.4,0.4]
[1720698679054,3.16446,3160.1,3159.4,0.4]
[1720698680248,2.3578,3159.9,3159.4,0.4]
[1720698680462,6.3301,3159.5,3159.4,0.4]
[1720698680661,2.3578,3159.9,3159.4,0.4]
[1720698680662,3.16491,3159.7,3159.4,0.4]
[1720698680873,14.64065081,3159.9,3159.4,0.4]